{"text_format":"3","workbook":"xlsx","n_sheets":3,"sheets":["申請表","請撥單","補助經費收支結算表"],"not_rendered":{"defined_names":4},"read":"whole","date_system":"1900"}

{"sheet":"申請表","index":0,"n_rows":57,"n_cols":7,"rows_kept":57,"merged":[[0,0,0,6],[1,0,2,1],[1,2,2,6],[5,0,5,4],[5,5,5,6],[6,0,6,6],[7,0,7,6],[8,0,8,6],[9,0,9,6],[10,0,10,6],[11,0,11,6],[12,0,12,6],[13,0,13,6],[14,0,14,6],[15,0,15,6],[16,0,16,6],[17,0,17,6],[18,0,18,1],[18,3,18,4],[19,0,29,0],[19,6,27,6],[22,1,23,1],[24,1,25,1],[26,1,27,1],[29,1,29,4],[30,0,47,0],[47,1,47,4],[48,0,49,0],[49,1,49,4],[50,0,50,4],[51,0,51,6],[52,0,52,6],[53,0,53,6],[54,0,54,6],[55,0,55,6],[56,0,56,6],[57,0,57,6]]}
[]
["附件4",null,"教育部補助磨課師課程推動計畫項目經費"]
[]
[{"$nulls":6},"▓申請表"]
[{"$nulls":6},"□核定表"]
["申請單位：ＯＯＯＯ大學",{"$nulls":4},"計畫名稱：ＯＯＯＯ大學磨課師課程推動計畫"]
["計畫期程：105年4月1日至106年3月31日"]
["計畫經費總額：        元，向本部申請補助金額：        元，自籌款：         元"]
["擬向其他機關與民間團體申請補助：□無□有"]
["（請註明其他機關與民間團體申請補助經費之項目及金額）"]
["       教育部：              元，補助項目及金額："]
["       ＯＯＯ部：………………元，補助項目及金額："]
["本部核定補助金額：○○○元，經常門○○○元，資本門○○○元（核定後填寫）"]
["第1期核定補助金額：○○○元，經常門○○○元，資本門○○○元。"]
["第2期核定補助金額：○○○元，經常門○○○元，資本門0元。"]
["本案為部分補助，補助比例○○○（申請補助金額/計畫經費總額），補助依據：教育部補助推動人文及科技教育先導型計畫要點。"]
["餘款繳回方式：依教育部補助及委辦經費核撥結報作業要點第十一點辦理"]
["本案人力○○○位，專任○○○位，兼任○○○位。"]
["經費項目",null,"單價(元)","數量",null,"金額(元)","說明"]
["人事費","專業人力",null,null,"人月",{"$f":"SUM(C20*D20)","v":0},"1.視全校總體規劃及個別課程需求，聘用數位課程設計師、數位媒體設計師、程式設計師與工程師等專業人員，其薪資以主計處公告計畫執行前一年電腦系統設計服務業或資料處理及資訊供應服務業平均薪資為標準，本案以○○○元計，計需○○○個月。為處理○○○(工作項目)，得聘○○○(級別)專任助理，其薪資為○○○。為處理○○○(工作項目)，得聘兼任助理，每人每月以新臺幣5,000元為限。\n2.專任人員若12月1日仍在職者，始得按當年工作月數依比例編列年終獎金。以○○○月在職起算，至○○○年12月止，計○○○個月*○○○/12=○○○個月。\n3.計畫人力得編列勞健保費。專業人力勞保費○○○+健保費○○○=○○○元；專任人力勞保費○○○+健保費○○○=○○○元；兼任人力勞保費○○○元。\n4.計畫人力得編列勞工退休金(以本薪6%計)。"]
[null,"專任助理",null,null,"人月",{"$f":"SUM(C21*D21)","v":0}]
[null,"兼任助理",null,null,"人月",{"$f":"SUM(C22*D22)","v":0}]
[null,"年終獎金",null,null,"月",0]
[{"$nulls":4},"月",0]
[null,"勞保費、健保費",null,null,"人月",0]
[{"$nulls":4},"人月",0]
[null,"勞退金",null,null,"月",0]
[{"$nulls":4},"月",0]
[null,"補充保費",null,null,"式",0,"兼任人力及專任年終獎金部分得編列補充保費，請詳列計算方式。"]
[null,"人事費小計",{"$nulls":3},{"$f":"SUM(F20:F29)","v":0}]
["業務費","磨課師課程錄製費",null,null,"小時",{"$f":"SUM(C31*D31)","v":0},"1.為開設磨課師課程，教師需錄製課程影音內容，得編列錄製鐘點費，其費用比照內聘講座鐘點費。1小時課程內容至多錄製○○○小時，每門課○○○小時，○○○*○○○*○○○=○○○。\n2.專業人員薪資、錄製鐘點費、工作費及工讀費等4項總合以不超過教育部補助經費總額之60%。"]
[null,"材料費",null,null,"式",0,"以本案補助課程所用材料為限，不含紙張、文具、碳粉匣等一般耗材。請詳列計算方式。"]
[null,"稿費",null,null,"式",0,"計畫執行之課程所需之撰稿、媒體使用及版權費用。請詳列計算方式。"]
[null,"講座鐘點費",null,null,"小時",0,"辦理研習會、座談會或訓練進修，邀請學者專家擔任授課人員發給講座點費。\n1.○○○研討議：○○○元×○○○人次＝○○○元\n2.○○○座談會：○○○元×○○○人次＝○○○元\n3.○○○訓練進修：○○○元×○○○人次＝○○○元"]
[null,"學者專家諮詢費及出席費",null,null,"人次",0,"1.邀請相關領域學者專家，提供計畫執行、永續經營及成效追蹤等諮詢。每人每次○○○元。\n2.預計○○○次。"]
[null,"研討會主持費",null,null,"人次",0,"邀請校內外專家學者主持研討會場次，每人次新臺幣1000元或2000元，○○○元×○○○人×○○○次＝○○○元。"]
[null,"交通差旅費",null,null,"人次",0,"依「國內出差旅費報支要點」核實支付。計畫成員參加工作坊、期末成果發表會及相關研習活動所需國內差旅費，請依下列格式列明計算式。\n1.○○○會議：○○○元×○○○人次＝○○○元\n2.○○○活動參與：○○○元×○○○人次＝○○○元\n3.○○○競賽參與：○○○元×○○○人次＝○○○元"]
[null,"工作費(教材製作）",null,null,"人日",0,"為開設磨課師課程，協助課程錄製相關工作，得編列工作費，唯人力不與工讀費重複，以現行勞動基準法所訂每人每小時最低基本工資支給。\n1.○○○○工作項目：○○○人日(時)\n2.○○○○工作項目：○○○人日(時)"]
[null,"工作費（其他）",null,null,"人日",0,"為執行磨課師推動，協助推動相關工作，得編列工作費，唯人力不與工讀費重複，以現行勞動基準法所訂每人每小時最低基本工資支給。\n1.○○○○活動：○○○日(時)*○○○人\n2.○○○○活動：○○○日(時)*○○○人"]
[null,"工作費勞保費",null,null,"式",0,"臨時人力得編列勞保費，請詳列計算方式。"]
[null,"工讀費(教材製作）",null,null,"人日",0,"為開設磨課師課程，協助課程錄製相關工作，得編列工讀費，唯工讀費人力不與工作費重複，以現行勞動基準法所訂每人每小時最低基本工資1.2倍為支給上限。大專校院工讀費依規定支給。\n1.○○○○工作項目：○○○人日(時)\n2.○○○○工作項目：○○○人日(時)"]
[null,"工讀費（其他）",null,null,"人日",0,"為執行磨課師推動，協助推動相關工作，得編列工讀費，唯工讀費人力不與工作費重複，以現行勞動基準法所訂每人每小時最低基本工資1.2倍為支給上限。大專校院工讀費依規定支給。\n1.○○○○活動：○○○日(時)*○○○人\n2.○○○○活動：○○○日(時)*○○○人"]
[null,"工讀費勞保費",null,null,"式",{"$f":"SUM(C43*D43)","v":0},"臨時人力得編列勞保費，請詳列計算方式。"]
[null,"印刷費",null,null,"式",0,"為發展課程所需之相關印刷費用。"]
[null,"資料蒐集費",null,1,"式",0,"核實報支，以新臺幣30,000元為限。"]
[null,"補充保費",null,null,"式",0,"臨時人力得編列補充保費，請詳列計算方式。"]
[null,"雜費",null,null,"式",0,"凡前項費用未列之辦公事務費用屬之。如文具用品、紙張、資訊耗材、資料夾、郵資等屬之。"]
[null,"業務費小計",{"$nulls":3},0]
["設備及投資","設備費",null,null,"式",{"$f":"SUM(C49*D49)","v":0},"1.以補助課程製作所需設備項目為主，已獲得前期補助之設備項目，本期不得重複申請，本部不補助平臺維運與建置相關費用。亦不得使用本部設備補助款採構一般/事務性設備(如印表機、投影機、單槍投影機、實驗桌椅..等一般教學設備)。各項目皆為單價在新臺幣10,000元以上，且使用年限在2年以上之軟硬體設備。桌上型電腦單價以不超過新台幣25,000元，以及筆記型電腦單價以不超過新台幣30,000元為限。\n2.設備項目(含規格)請勿指定廠牌(如hp ×××、Asus ×××、ipad、….等)。\n3.請詳列計算式。\n"]
[null,"設備及投資小計",{"$nulls":3},0]
["總計",{"$nulls":4},{"$f":"SUM(F30,F48,F49)","v":0}]
["承辦                     主(會)計            機關學校首長"]
["單位                     單位                或團體負責人"]
["備註："]
["1、同一計畫向本部及其他機關申請補助時，應於計畫項目經費申請表內，詳列向本部及其他機關申請補助之項目及金額，如有隱匿不實或造假情事，本部應撤銷該補助案件，並收回已撥付款項。"]
["2、補助計畫除依本要點第4點規定之情形外，以不補助人事費、內部場地使用費及行政管理費為原則。"]
["3、申請補助經費，其計畫執行涉及需依「政府機關政策文宣規劃執行注意事項」、預算法第62條之1及其執行原則等相關規定辦理者，應明確標示其為「廣告」，且揭示贊助機關（教育部）名稱，並不得以置入性行銷方式進行。     "]

{"sheet":"請撥單","index":1,"n_rows":22,"n_cols":11,"rows_kept":22,"merged":[[1,0,1,10],[6,0,7,0],[6,1,7,1],[6,2,6,3],[6,4,7,4],[6,5,7,5],[6,6,7,6],[6,7,7,7],[6,8,7,8],[6,9,7,9],[6,10,7,10]]}
["附表一"]
["教育部補助經費請撥單"]
["執行單位名稱："]
["計畫性質：■補助     "]
["                    □委辦(教育部辦理方式： □政府採購法    □行政指示   □行政協助)",{"$nulls":8},"單位：新臺幣元"]
[{"$nulls":9},"百分比：取至小數點二位"]
["計畫名稱","計畫期間","(A)",null,"已撥金額\n(B)","累計實付數\n(C)","執行率%\n(D=C/B)","本次請撥金額(E)","截至本次已撥金額(F=B+E)","未付金額(G=A-F)","說明"]
[null,null,"教育部\n核定金額","請撥金額\n(得標金額+工程管理費)\n"]
{"$rows_empty":9}
[" 業務單位:",null,null,"   主(會)計單位：",{"$nulls":3},"機關學校首長(或團體負責人)："]
[]
["備註："]
["一、請撥第二期款及其以後期別款項者，請填寫本表；請撥第一期款者，免填。"]
["二、有關(A)欄之填寫，如未涉採購案件之計畫金額請填寫「教育部核定金額」乙欄，如涉及採購案件之計畫金額，請填寫「請撥金額」乙欄。"]

{"sheet":"補助經費收支結算表","index":2,"n_rows":32,"n_cols":9,"rows_kept":32,"merged":[[1,0,1,8],[14,1,14,4],[14,5,14,7],[15,1,15,4],[15,5,15,7],[16,0,16,7],[17,1,17,4],[17,5,17,7],[18,1,18,4],[18,5,18,7],[19,1,19,4],[19,5,19,7],[20,1,20,4],[20,5,20,7],[21,1,21,4],[21,5,21,7],[22,0,22,4],[22,5,22,7],[32,0,32,8]]}
["附表四之一"]
["教育部補助經費收支結算表"]
["執行單位名稱：",{"$nulls":7},"所屬年度："]
["計畫名稱：",{"$nulls":7},"計畫主持人："]
["教育部核定函日期文號：",{"$nulls":3}," ",{"$nulls":3},"單位：新臺幣元"]
["計畫期程：        年        月       日至     年    月    日 ",{"$nulls":7},"百分比：取至小數點二位"]
["經費項目\n(或各受補助學校名稱)","教育部核定\n計畫金額\n(A)","教育部核定補助金額\n(B)","教育部\n撥付金額\n(C)","教育部\n補助比率\n(D=B/A)","實支總額\n(E)","計畫結餘款\n(F=A-E)","依公式應繳回\n教育部結餘款\n(G=F*D-(B-C))","備                       註"]
["人事費",{"$nulls":7},"請查填以下資料："]
["業務費",{"$nulls":7},"*□經常門   □資本門"]
["設備及投資",{"$nulls":7},"*□全額補助 ■部分補助 "]
["合計",{"$nulls":7},"*餘款繳回方式        "]
[{"$nulls":8},"□依計畫規定（ □繳回 □不繳回）"]
[{"$nulls":8},"■依核撥結報作業要點辦理（ □繳回 □不繳回）"]
["是否適用彈性經費支用規定(註八)  （ □是 □否），勾選「是」者，請查填下列支用情形",{"$nulls":7},"是否有未執行項目（ □是 □否），金額    元"]
[null,"可支用額度(元)",{"$nulls":3},"實支總額(元)",null,null,"□其他（請備註說明）"]
["彈性經費"]
["支出機關分攤表：",{"$nulls":7},"*部分補助計畫請查填左列支出機關分攤表"]
[null,"分攤機關名稱",{"$nulls":3},"分攤金額(元)",null,null,"，其金額合計應等於實支總額"]
[1,"教育部",{"$nulls":6},"*執行率未達80%之原因說明"]
[2,"機關1"]
[3,"機關2"]
[4,"機關3"]
["合計"]
[]
[" 業務單位:",{"$nulls":3},"   主(會)計單位：",{"$nulls":3},"機關學校首長(或團體負責人)："]
["一、本表請隨函檢送乙份。"]
["二、本表「教育部核定計畫金額」係計畫金額經本部審核調整後之金額；若未調整，則填原提計畫金額。"]
["三、本表「教育部核定計畫金額」及「實支金額」請填寫該項目之總額(含自籌款、教育部及其他單位分攤款)。"]
["四、本表「依公式應繳回教育部結餘款」以全案合計數計算。"]
["五、本表「各受補助學校名稱」為供各地方政府填寫各受補助學校名稱。"]
["六、若實際繳回金額與依本表公式計算之金額有差異時，請於備註說明。"]
["七、計畫執行率未達百分之八十者，請於備註敘明原因。"]